fUSD/lending_fUSD_20240517
["ID","MTS","AMOUNT","RATE_DAILY","PERIOD"]
[327332420,1715989850789,-500.0,0.00012995,2]
[327332421,1715989850798,-500.0,0.00012995,2]
[327332422,1715989850807,-500.0,0.00012995,2]
[327332423,1715989850817,-500.0,0.00012995,2]
[327332424,1715989850826,-500.0,0.00012995,2]
[327332425,1715989850835,-548.96,0.00012995,2]
[327332426,1715989850844,-500.0,0.00012995,2]
[327332427,1715989850854,-500.0,0.00012995,2]
[327332428,1715989850863,-500.0,0.00012995,2]
[327332429,1715989850872,-500.0,0.00012995,2]
[327332430,1715989850881,-322.54,0.00012995,2]
[327332431,1715989850890,-500.0,0.00012995,2]
[327332432,1715989850900,-500.0,0.00012995,2]
[327332433,1715989850909,-500.0,0.00012995,2]
[327332434,1715989850919,-500.0,0.00012995,2]
[327332435,1715989850928,-640.85142049,0.00012995,2]
[327332436,1715989850937,-811.52,0.00012995,2]
[327332437,1715989850946,-500.0,0.00012995,2]
[327332438,1715989850956,-500.0,0.00012995,2]
[327332439,1715989850965,-500.0,0.00012995,2]
[327332440,1715989850975,-500.0,0.00012995,2]
[327332441,1715989850984,-500.0,0.00012995,2]
[327332442,1715989850993,-500.0,0.00012995,2]
[327332443,1715989851002,-167.95,0.00012995,2]
[327332444,1715989851011,-500.0,0.00012995,2]
[327332445,1715989851021,-500.0,0.00012995,2]
[327332446,1715989851031,-318.03,0.00012995,2]
[327332447,1715989851040,-521.94,0.00012995,2]
[327332448,1715989851049,-500.0,0.00012995,2]
[327332449,1715989851058,-500.0,0.00012995,2]
[327332450,1715989851068,-500.0,0.00012995,2]
[327332451,1715989851077,-500.0,0.00012995,2]
[327332452,1715989851086,-500.0,0.00012995,2]
[327332453,1715989851095,-500.0,0.00012995,2]
[327332454,1715989851104,-500.0,0.00012995,2]
[327332455,1715989851114,-500.0,0.00012995,2]
[327332456,1715989851122,-500.0,0.00012995,2]
[327332457,1715989851132,-500.0,0.00012995,2]
[327332458,1715989851141,-500.0,0.00012995,2]
[327332459,1715989851150,-1201.79,0.00012995,2]
[327332460,1715989851159,-500.0,0.00012995,2]
[327332461,1715989851168,-500.0,0.00012995,2]
[327332462,1715989851177,-319.90782488,0.00012995,2]
[327332463,1715989851186,-500.0,0.00012995,2]
[327332464,1715989851195,-500.0,0.00012995,2]
[327332465,1715989851205,-500.0,0.00012995,2]
[327332466,1715989851214,-351.27,0.00012995,2]
[327332467,1715989851228,-500.0,0.00012995,2]
[327332468,1715989851237,-500.0,0.00012995,2]
[327332469,1715989851246,-500.0,0.00012995,2]
[327332470,1715989851257,-327.45,0.00012995,2]
[327332471,1715989851268,-500.0,0.00012995,2]
[327332472,1715989851277,-500.0,0.00012995,2]
[327332473,1715989851287,-500.0,0.00012995,2]
[327332474,1715989851298,-500.0,0.00012995,2]
[327332475,1715989851308,-500.0,0.00012995,2]
[327332476,1715989851318,-500.0,0.00012995,2]
[327332477,1715989851327,-219.93,0.00012995,2]
[327332478,1715989851335,-500.0,0.00012995,2]
[327332479,1715989851345,-500.0,0.00012995,2]
[327332480,1715989851354,-500.0,0.00012995,2]
[327332481,1715989851364,-500.0,0.00012995,2]
[327332482,1715989851373,-500.0,0.00012995,2]
[327332483,1715989851383,-500.0,0.00012995,2]
[327332484,1715989851392,-500.0,0.00012995,2]
[327332485,1715989851401,-500.0,0.00012995,2]
[327332486,1715989851410,-573.28,0.00012995,2]
[327332487,1715989851420,-551.03,0.00012995,2]
[327332488,1715989851432,-500.0,0.00012995,2]
[327332489,1715989851442,-500.0,0.00012995,2]
[327332490,1715989851452,-500.0,0.00012995,2]
[327332491,1715989851462,-500.0,0.00012995,2]
[327332492,1715989851472,-500.0,0.00012995,2]
[327332493,1715989851482,-271.3,0.00012995,2]
[327332494,1715989851492,-500.0,0.00012995,2]
[327332495,1715989851501,-500.0,0.00012995,2]
[327332496,1715989851510,-500.0,0.00012995,2]
[327332497,1715989851521,-500.0,0.00012995,2]
[327332498,1715989851531,-648.58,0.00012995,2]
[327332499,1715989851541,-648.58,0.00012995,2]
[327332500,1715989851550,-500.0,0.00012995,2]
[327332501,1715989851560,-2508.95,0.00012995,2]
[327332502,1715989851570,-202.6,0.00012995,2]
[327332503,1715989851579,-500.0,0.00012995,2]
[327332504,1715989851589,-500.0,0.00012995,2]
[327332505,1715989851600,-500.0,0.00012995,2]
[327332506,1715989851610,-500.0,0.00012995,2]
[327332507,1715989851620,-500.0,0.00012995,2]
[327332508,1715989851630,-500.0,0.00012995,2]
[327332509,1715989851639,-500.0,0.00012995,2]
[327332510,1715989851650,-500.0,0.00012995,2]
[327332511,1715989851659,-500.0,0.00012995,2]
[327332512,1715989851668,-500.0,0.00012995,2]
[327332513,1715989851677,-500.0,0.00012995,2]
[327332514,1715989851685,-500.0,0.00012995,2]
[327332515,1715989851695,-619.13,0.00012995,2]
[327332516,1715989851703,-500.0,0.00012995,2]
[327332517,1715989851712,-512.3,0.00012995,2]
[327332518,1715989851722,-500.0,0.00012995,2]
[327332519,1715989851731,-500.0,0.00012995,2]
[327332520,1715989851740,-1005.37,0.00012995,2]
[327332521,1715989851749,-500.0,0.00012995,2]
[327332522,1715989851758,-500.0,0.00012995,2]
[327332523,1715989851768,-500.0,0.00012995,2]
[327332524,1715989851777,-500.0,0.00012995,2]
[327332525,1715989851786,-500.0,0.00012995,2]
[327332526,1715989851795,-500.0,0.00012995,2]
[327332527,1715989851804,-500.0,0.00012995,2]
[327332528,1715989851812,-243.9,0.00012995,2]
[327332529,1715989851821,-500.0,0.00012995,2]
[327332530,1715989851830,-500.0,0.00012995,2]
[327332531,1715989851839,-500.0,0.00012995,2]
[327332532,1715989851848,-500.0,0.00012995,2]
[327332533,1715989851857,-500.0,0.00012995,2]
[327332534,1715989851866,-500.0,0.00012995,2]
[327332535,1715989851875,-500.0,0.00012995,2]
[327332536,1715989851883,-1870.32,0.00012995,2]
[327332537,1715989851892,-506.26078918,0.00012995,2]
[327332538,1715989851903,-500.0,0.00012995,2]
[327332539,1715989851912,-500.0,0.00012995,2]
[327332540,1715989851922,-500.0,0.00012995,2]
[327332541,1715989851933,-500.0,0.00012995,2]
[327332542,1715989851943,-500.0,0.00012995,2]
[327332543,1715989851952,-648.26,0.00012995,2]
[327332544,1715989851962,-500.0,0.00012995,2]
[327332545,1715989851972,-500.0,0.00012995,2]
[327332546,1715989851981,-500.0,0.00012995,2]
[327332547,1715989851990,-500.0,0.00012995,2]
[327332548,1715989852001,-192.06,0.00012995,2]
[327332549,1715989852011,-500.0,0.00012995,2]
[327332550,1715989852020,-500.0,0.00012995,2]
[327332551,1715989852030,-500.0,0.00012995,2]
[327332552,1715989852039,-500.0,0.00012995,2]
[327332553,1715989852049,-500.0,0.00012995,2]
[327332554,1715989852059,-500.0,0.00012995,2]
[327332555,1715989852070,-500.0,0.00012995,2]
[327332556,1715989852081,-500.0,0.00012995,2]
[327332557,1715989852091,-500.0,0.00012995,2]
[327332558,1715989852102,-500.0,0.00012995,2]
[327332559,1715989852111,-366.83561387,0.00012995,2]
[327332560,1715989852119,-500.0,0.00012995,2]
[327332561,1715989852129,-500.0,0.00012995,2]
[327332562,1715989852137,-500.0,0.00012995,2]
[327332563,1715989852147,-500.0,0.00012995,2]
[327332564,1715989852156,-500.0,0.00012995,2]
[327332565,1715989852167,-500.0,0.00012995,2]
[327332566,1715989852178,-500.0,0.00012995,2]
[327332567,1715989852189,-658.45,0.00012995,2]
[327332568,1715989852199,-858.01,0.00012995,2]
[327332569,1715989852208,-500.0,0.00012995,2]
[327332570,1715989852218,-500.0,0.00012995,2]
[327332571,1715989852234,-500.0,0.00012995,2]
[327332572,1715989852244,-500.0,0.00012995,2]
[327332573,1715989852254,-500.0,0.00012995,2]
[327332574,1715989852292,-500.0,0.00012995,2]
[327332575,1715989852302,-25384.82935335,0.00012996,2]
[327332576,1715989852326,-3055.35126391,0.00012996,2]
[327332577,1715989852353,-500.0,0.00012797,2]
[327332578,1715989852363,-6214.73959698,0.00012996,2]
[327332579,1715989852383,-4898.97143323,0.00012996,2]
[327332580,1715989852395,-813.64995,0.00012996,2]
[327332581,1715989852549,-500.0,0.00012796,2]
[327332582,1715989852558,-366.3688732,0.00012959,2]
[327332583,1715989852570,-133.6311268,0.00012959,2]
[327332584,1715989852579,-464.48664748,0.00012995,2]
[327332585,1715989852596,-35.51335252,0.00012995,2]
[327332586,1715989852606,-928.21843072,0.00012996,2]
[327332587,1715989852622,-159505.39314644,0.00012996,2]
[327332588,1715989852631,-25824.8015817,0.00012996,2]
[327332589,1715989852640,-500.0,0.00012996,2]
[327332590,1715989852649,-500.0,0.00012996,2]
[327332591,1715989852658,-181.05,0.00012996,2]
[327332592,1715989852667,-500.0,0.00012996,2]
[327332593,1715989852677,-500.0,0.00012996,2]
[327332594,1715989852686,-500.0,0.00012996,2]
[327332595,1715989852695,-500.0,0.00012996,2]
[327332596,1715989852704,-500.0,0.00012996,2]
[327332597,1715989852713,-581.29,0.00012996,2]
[327332598,1715989852724,-166.55,0.00012996,2]
[327332599,1715989852733,-266.08,0.00012996,2]
[327332600,1715989852742,-500.0,0.00012996,2]
[327332601,1715989852751,-559.72,0.00012996,2]
[327332602,1715989852760,-153.8,0.00012996,2]
[327332603,1715989852770,-301.06,0.00012996,2]
[327332604,1715989852779,-389.58,0.00012996,2]
[327332605,1715989852788,-234.77,0.00012996,2]
[327332606,1715989852798,-276.59,0.00012996,2]
[327332607,1715989852807,-398.79,0.00012996,2]
[327332608,1715989852816,-464.4,0.00012996,2]
[327332609,1715989852825,-387.86,0.00012996,2]
[327332610,1715989852834,-477.85,0.00012996,2]
[327332611,1715989852843,-308.68,0.00012996,2]
[327332612,1715989852853,-435.28,0.00012996,2]
[327332613,1715989852862,-162.83,0.00012996,2]
[327332614,1715989852872,-210.23,0.00012996,2]
[327332615,1715989852881,-290.18,0.00012996,2]
[327332616,1715989852890,-206.76,0.00012996,2]
[327332617,1715989852899,-320.56,0.00012996,2]
[327332618,1715989852910,-575.64,0.00012996,2]
[327332619,1715989852919,-578.4,0.00012996,2]
[327332620,1715989852928,-500.0,0.00012996,2]
[327332621,1715989852938,-260.64,0.00012996,2]
[327332622,1715989852947,-324.76,0.00012996,2]
[327332623,1715989852956,-616.57,0.00012996,2]
[327332624,1715989852965,-244.62,0.00012996,2]
[327332625,1715989852975,-500.0,0.00012996,2]
[327332626,1715989852984,-323.39,0.00012996,2]
[327332627,1715989852993,-500.0,0.00012996,2]
[327332628,1715989853002,-238.78,0.00012996,2]
[327332629,1715989853011,-153.33,0.00012996,2]
[327332630,1715989853020,-500.0,0.00012996,2]
[327332631,1715989853030,-500.0,0.00012996,2]
[327332632,1715989853039,-622.54,0.00012996,2]
[327332633,1715989853048,-500.0,0.00012996,2]
[327332634,1715989853057,-500.0,0.00012996,2]
[327332635,1715989853066,-218.96,0.00012996,2]
[327332636,1715989853076,-500.0,0.00012996,2]
[327332637,1715989853085,-307.72,0.00012996,2]
[327332638,1715989853094,-168.05,0.00012996,2]
[327332639,1715989853103,-500.0,0.00012996,2]
[327332640,1715989853112,-500.0,0.00012996,2]
[327332641,1715989853123,-500.0,0.00012996,2]
[327332642,1715989853133,-500.0,0.00012996,2]
[327332643,1715989853142,-500.0,0.00012996,2]
[327332644,1715989853153,-500.0,0.00012996,2]
[327332645,1715989853162,-500.0,0.00012996,2]
[327332646,1715989853172,-607.12,0.00012996,2]
[327332647,1715989853184,-522.8,0.00012996,2]
[327332648,1715989853194,-383.21,0.00012996,2]
[327332649,1715989853203,-500.0,0.00012996,2]
[327332650,1715989853213,-454.9,0.00012996,2]
[327332651,1715989853223,-410.6,0.00012996,2]
[327332652,1715989853235,-500.0,0.00012996,2]
[327332653,1715989853245,-2000.0,0.00012996,2]
[327332654,1715989853255,-387.35,0.00012996,2]
[327332655,1715989853265,-520.79,0.00012996,2]
[327332656,1715989853275,-500.0,0.00012996,2]
[327332657,1715989853284,-500.0,0.00012996,2]
[327332658,1715989853294,-500.0,0.00012996,2]
[327332659,1715989853304,-300.82,0.00012996,2]
[327332660,1715989853314,-500.0,0.00012996,2]
[327332661,1715989853324,-271.35,0.00012996,2]
[327332662,1715989853334,-331.97,0.00012996,2]
[327332663,1715989853343,-237.52,0.00012996,2]
[327332664,1715989853353,-500.0,0.00012996,2]
[327332665,1715989853362,-500.0,0.00012996,2]
[327332666,1715989853371,-342.01,0.00012996,2]
[327332667,1715989853380,-168.46,0.00012996,2]
[327332668,1715989853390,-500.0,0.00012996,2]
[327332669,1715989853400,-171.81,0.00012996,2]
[327332670,1715989853409,-544.27,0.00012996,2]
[327332671,1715989853419,-216.53,0.00012996,2]
[327332672,1715989853428,-488.27070479,0.00012996,2]
[327332673,1715989853437,-500.0,0.00012996,2]
[327332674,1715989853446,-421.62,0.00012996,2]
[327332675,1715989853456,-211.25,0.00012996,2]
[327332676,1715989853465,-326.85,0.00012996,2]
[327332677,1715989853475,-351.94,0.00012996,2]
[327332678,1715989853484,-304.46,0.00012996,2]
[327332679,1715989853493,-163.83,0.00012996,2]
[327332680,1715989853503,-500.0,0.00012996,2]
[327332681,1715989853513,-500.0,0.00012996,2]
[327332682,1715989853523,-387.81,0.00012996,2]
[327332683,1715989853534,-289.71,0.00012996,2]
[327332684,1715989853544,-494.1,0.00012996,2]
[327332685,1715989853554,-186.45,0.00012996,2]
[327332686,1715989853564,-331.85,0.00012996,2]
[327332687,1715989853573,-263.25,0.00012996,2]
[327332688,1715989853583,-500.0,0.00012996,2]
[327332689,1715989853592,-478.16,0.00012996,2]
[327332690,1715989853602,-500.0,0.00012996,2]
[327332691,1715989853613,-500.0,0.00012996,2]
[327332692,1715989853623,-500.0,0.00012996,2]
[327332693,1715989853633,-270.98,0.00012996,2]
[327332694,1715989853642,-500.0,0.00012996,2]
[327332695,1715989853651,-500.0,0.00012996,2]
[327332696,1715989853660,-500.0,0.00012996,2]
[327332697,1715989853670,-500.0,0.00012996,2]
[327332698,1715989853682,-403.22,0.00012996,2]
[327332699,1715989853693,-500.0,0.00012996,2]
[327332700,1715989853704,-523.92242388,0.00012996,2]
[327332701,1715989853714,-500.0,0.00012996,2]
[327332702,1715989853724,-385.06,0.00012996,2]
[327332703,1715989853734,-500.0,0.00012996,2]
[327332704,1715989853744,-500.0,0.00012996,2]
[327332705,1715989853754,-500.0,0.00012996,2]
[327332706,1715989853764,-500.0,0.00012996,2]
[327332707,1715989853773,-500.0,0.00012996,2]
[327332708,1715989853783,-500.0,0.00012996,2]
[327332709,1715989853792,-1005.37,0.00012996,2]
[327332710,1715989853802,-500.0,0.00012996,2]
[327332711,1715989853812,-500.0,0.00012996,2]
[327332712,1715989853821,-431.08,0.00012996,2]
[327332713,1715989853831,-183.02,0.00012996,2]
[327332714,1715989853840,-214.32435929,0.00012996,2]
[327332715,1715989853850,-500.0,0.00012997,2]
[327332716,1715989853860,-500.0,0.00012997,2]
[327332717,1715989853870,-540.63,0.00012997,2]
[327332718,1715989853880,-407.45,0.00012997,2]
[327332719,1715989853890,-500.0,0.00012997,2]
[327332720,1715989853899,-536.01,0.00012997,2]
[327332721,1715989853909,-500.0,0.00012997,2]
[327332722,1715989853918,-500.0,0.00012997,2]
[327332723,1715989853927,-503.77,0.00012997,2]
[327332724,1715989853937,-244.47,0.00012997,2]
[327332725,1715989853946,-500.0,0.00012997,2]
[327332726,1715989853955,-209.75,0.00012997,2]
[327332727,1715989853965,-473.97,0.00012997,2]
[327332728,1715989853975,-500.0,0.00012997,2]
[327332729,1715989853984,-157.4,0.00012997,2]
[327332730,1715989853994,-500.0,0.00012997,2]
[327332731,1715989854003,-607.25,0.00012997,2]
[327332732,1715989854013,-445.3,0.00012997,2]
[327332733,1715989854024,-430.53,0.00012997,2]
[327332734,1715989854033,-471.75,0.00012997,2]
[327332735,1715989854043,-500.0,0.00012997,2]
[327332736,1715989854052,-500.5,0.00012997,2]
[327332737,1715989854062,-205.11,0.00012997,2]
[327332738,1715989854071,-422.49,0.00012997,2]
[327332739,1715989854080,-524.4,0.00012997,2]
[327332740,1715989854090,-560.23,0.00012997,2]
[327332741,1715989854099,-500.0,0.00012997,2]
[327332742,1715989854109,-245.83,0.00012997,2]
[327332743,1715989854118,-500.0,0.00012997,2]
[327332744,1715989854127,-500.0,0.00012997,2]
[327332745,1715989854136,-201.47,0.00012997,2]
[327332746,1715989854146,-500.0,0.00012997,2]
[327332747,1715989854155,-223.47,0.00012997,2]
[327332748,1715989854165,-439.66,0.00012997,2]
[327332749,1715989854175,-488.49,0.00012997,2]
[327332750,1715989854184,-284.31,0.00012997,2]
[327332751,1715989854193,-588.95,0.00012997,2]
[327332752,1715989854202,-318.74,0.00012997,2]
[327332753,1715989854212,-500.0,0.00012997,2]
[327332754,1715989854223,-500.0,0.00012997,2]
[327332755,1715989854235,-500.0,0.00012997,2]
[327332756,1715989854244,-500.0,0.00012997,2]
[327332757,1715989854254,-500.0,0.00012997,2]
[327332758,1715989854263,-500.0,0.00012997,2]
[327332759,1715989854273,-500.0,0.00012997,2]
[327332760,1715989854282,-811.52,0.00012997,2]
[327332761,1715989854292,-521.94,0.00012997,2]
[327332762,1715989854302,-500.0,0.00012997,2]
[327332763,1715989854311,-500.0,0.00012997,2]
[327332764,1715989854321,-500.0,0.00012997,2]
[327332765,1715989854331,-500.0,0.00012997,2]
[327332766,1715989854340,-1201.79,0.00012997,2]
[327332767,1715989854349,-500.0,0.00012997,2]
[327332768,1715989854359,-500.0,0.00012997,2]
[327332769,1715989854368,-500.0,0.00012997,2]
[327332770,1715989854378,-500.0,0.00012997,2]
[327332771,1715989854387,-500.0,0.00012997,2]
[327332772,1715989854397,-500.0,0.00012997,2]
[327332773,1715989854406,-500.0,0.00012997,2]
[327332774,1715989854415,-500.0,0.00012997,2]
[327332775,1715989854425,-500.0,0.00012997,2]
[327332776,1715989854434,-500.0,0.00012997,2]
[327332777,1715989854444,-500.0,0.00012997,2]
[327332778,1715989854454,-500.0,0.00012997,2]
[327332779,1715989854463,-573.28,0.00012997,2]
[327332780,1715989854473,-551.03,0.00012997,2]
[327332781,1715989854483,-500.0,0.00012997,2]
[327332782,1715989854492,-500.0,0.00012997,2]
[327332783,1715989854502,-500.0,0.00012997,2]
[327332784,1715989854512,-2508.95,0.00012997,2]
[327332785,1715989854521,-500.0,0.00012997,2]
[327332786,1715989854531,-524.54,0.00012997,2]
[327332787,1715989854541,-500.0,0.00012997,2]
[327332788,1715989854551,-500.0,0.00012997,2]
[327332789,1715989854561,-500.0,0.00012997,2]
[327332790,1715989854571,-500.0,0.00012997,2]
[327332791,1715989854580,-500.0,0.00012997,2]
[327332792,1715989854590,-500.0,0.00012997,2]
[327332793,1715989854599,-500.0,0.00012997,2]
[327332794,1715989854609,-1870.32,0.00012997,2]
[327332795,1715989854619,-500.0,0.00012997,2]
[327332796,1715989854628,-500.0,0.00012997,2]
[327332797,1715989854638,-500.0,0.00012997,2]
[327332798,1715989854647,-500.0,0.00012997,2]
[327332799,1715989854656,-500.0,0.00012997,2]
[327332800,1715989854666,-500.0,0.00012997,2]
[327332801,1715989854675,-500.0,0.00012997,2]
[327332802,1715989854684,-500.0,0.00012997,2]
[327332803,1715989854694,-500.0,0.00012997,2]
[327332804,1715989854703,-500.0,0.00012997,2]
[327332805,1715989854712,-268.68,0.00012997,2]
[327332806,1715989854723,-500.0,0.00012997,2]
[327332807,1715989854732,-658.45,0.00012997,2]
[327332808,1715989854742,-858.01,0.00012997,2]
[327332809,1715989854752,-500.0,0.00012997,2]
[327332810,1715989854761,-500.0,0.00012997,2]
[327332811,1715989854771,-551.82,0.00012998,2]
[327332812,1715989854780,-377.33,0.00012998,2]
[327332813,1715989854790,-157.051808,0.00012998,2]
[327332814,1715989854799,-157.051808,0.00012998,2]
[327332815,1715989854809,-157.051808,0.00012998,2]
[327332816,1715989854818,-157.051808,0.00012998,2]
[327332817,1715989854828,-157.051808,0.00012998,2]
[327332818,1715989854837,-500.0,0.00012998,2]
[327332819,1715989854847,-610.75,0.00012998,2]
[327332820,1715989854856,-500.0,0.00012998,2]
[327332821,1715989854866,-500.0,0.00012998,2]
[327332822,1715989854875,-500.0,0.00012998,2]
[327332823,1715989854885,-500.0,0.00012998,2]
[327332824,1715989854894,-337.83,0.00012998,2]
[327332825,1715989854904,-528.74,0.00012998,2]
[327332826,1715989854913,-168.75,0.00012998,2]
[327332827,1715989854923,-625.02,0.00012998,2]
[327332828,1715989854932,-500.0,0.00012998,2]
[327332829,1715989854941,-507.23,0.00012998,2]
[327332830,1715989854951,-500.0,0.00012998,2]
[327332831,1715989854961,-500.0,0.00012998,2]
[327332832,1715989854970,-500.0,0.00012998,2]
[327332833,1715989854981,-500.0,0.00012998,2]
[327332834,1715989854990,-500.0,0.00012998,2]
[327332835,1715989855000,-498.8175817,0.00012998,2]
[327332836,1715989855132,-1.1824183,0.00012998,2]
[327332837,1715989855141,-497.49,0.00012998,2]
[327332838,1715989855151,-500.0,0.00012998,2]
[327332839,1715989855161,-406.31,0.00012998,2]
[327332840,1715989855171,-467.72,0.00012998,2]
[327332841,1715989855180,-226.72,0.00012998,2]
[327332842,1715989855190,-500.0,0.00012998,2]
[327332843,1715989855199,-500.0,0.00012998,2]
[327332844,1715989855209,-150.0,0.00012998,2]
[327332845,1715989855219,-150.0,0.00012998,2]
[327332846,1715989855232,-357.62,0.00012998,2]
[327332847,1715989855242,-622.15,0.00012998,2]
[327332848,1715989855252,-326.72,0.00012998,2]
[327332849,1715989855385,-500.0,0.00012998,2]
[327332850,1715989855395,-583.25,0.00012998,2]
[327332851,1715989855404,-500.0,0.00012998,2]
[327332852,1715989855414,-500.0,0.00012998,2]
[327332853,1715989855423,-500.0,0.00012998,2]
[327332854,1715989855433,-184.08,0.00012998,2]
[327332855,1715989855442,-500.0,0.00012998,2]
[327332856,1715989855452,-500.0,0.00012998,2]
[327332857,1715989855461,-500.0,0.00012998,2]
[327332858,1715989855471,-500.0,0.00012998,2]
[327332859,1715989855481,-500.0,0.00012998,2]
[327332860,1715989855490,-377.13,0.00012998,2]
[327332861,1715989855499,-584.1,0.00012998,2]
[327332862,1715989855509,-235.53,0.00012998,2]
[327332863,1715989855519,-500.0,0.00012998,2]
[327332864,1715989855528,-500.0,0.00012998,2]
[327332865,1715989855537,-538.92,0.00012998,2]
[327332866,1715989855547,-500.0,0.00012998,2]
[327332867,1715989855556,-500.0,0.00012998,2]
[327332868,1715989855566,-500.0,0.00012998,2]
[327332869,1715989855575,-500.0,0.00012998,2]
[327332870,1715989855584,-500.0,0.00012998,2]
[327332871,1715989855593,-500.0,0.00012998,2]
[327332872,1715989855602,-500.0,0.00012998,2]
[327332873,1715989855612,-500.0,0.00012998,2]
[327332874,1715989855621,-500.0,0.00012998,2]
[327332875,1715989855630,-500.0,0.00012998,2]
[327332876,1715989855640,-500.0,0.00012998,2]
[327332877,1715989855650,-500.0,0.00012998,2]
[327332878,1715989855660,-344.41,0.00012998,2]
[327332879,1715989855669,-500.0,0.00012998,2]
[327332880,1715989855678,-500.0,0.00012998,2]
[327332881,1715989855687,-500.0,0.00012998,2]
[327332882,1715989855697,-500.0,0.00012998,2]
[327332883,1715989855706,-500.0,0.00012998,2]
[327332884,1715989855716,-367.09,0.00012998,2]
[327332885,1715989855725,-187.26,0.00012998,2]
[327332886,1715989855735,-278.41,0.00012998,2]
[327332887,1715989855745,-217.3,0.00012998,2]
[327332888,1715989855754,-544.27,0.00012998,2]
[327332889,1715989855764,-578.77,0.00012998,2]
[327332890,1715989855775,-576.13,0.00012998,2]
[327332891,1715989855785,-500.0,0.00012998,2]
[327332892,1715989855795,-416.07,0.00012998,2]
[327332893,1715989855804,-456.6,0.00012998,2]
[327332894,1715989855814,-500.0,0.00012998,2]
[327332895,1715989855823,-202.24,0.00012998,2]
[327332896,1715989855833,-500.0,0.00012998,2]
[327332897,1715989855843,-440.88,0.00012998,2]
[327332898,1715989855852,-440.2,0.00012998,2]
[327332899,1715989855862,-500.0,0.00012998,2]
[327332900,1715989855873,-500.0,0.00012998,2]
[327332901,1715989855883,-500.0,0.00012998,2]
[327332902,1715989855893,-500.0,0.00012998,2]
[327332903,1715989855902,-500.0,0.00012998,2]
[327332904,1715989855912,-500.0,0.00012998,2]
[327332905,1715989855922,-500.0,0.00012998,2]
[327332906,1715989855931,-576.12,0.00012998,2]
[327332907,1715989855940,-500.0,0.00012998,2]
[327332908,1715989855951,-500.0,0.00012998,2]
[327332909,1715989855960,-500.0,0.00012998,2]
[327332910,1715989855970,-356.54,0.00012998,2]
[327332911,1715989855980,-281.56,0.00012998,2]
[327332912,1715989855989,-500.0,0.00012998,2]
[327332913,1715989855999,-325.4852897,0.00012998,2]
[327332914,1715989856008,-342.61,0.00012998,2]
[327332915,1715989856019,-500.0,0.00012998,2]
[327332916,1715989856028,-500.0,0.00012998,2]
[327332917,1715989856038,-182.1,0.00012998,2]
[327332918,1715989856048,-500.0,0.00012998,2]
[327332919,1715989856060,-500.0,0.00012998,2]